Cogmind - Beta 15 @@@ ROGUE MODE // 2025.07.20 @ 00:06:52 Player: Infomantis Result: Destroyed by NH-TXF(R) with Subdweller Machine Gun Performance ------------- Evolutions (0) 0 Regions Visited (2) 400 Robots Destroyed (30) 150 Value Destroyed (920) 920 Prototype IDs (0) 0 Alien Tech Used (0) 0 Bonus (0) 0 TOTAL SCORE: 1470 Bonus ------- None Cogmind --------- Core Integrity 0/250 Matter 279/300 Energy 136/200 System Corruption 0% Temperature Cool (0) Movement Core (300) Ox5 Location -10/Subcaves Parts ------- > --- POWER (1) -------- Subdweller Power Source > --- PROPULSION (2) --- (None) > --- UTILITY (2) ------ (None) > --- WEAPON (2) ------- Subdweller Beam Cannon Shotgun > --- INVENTORY (5) ---- Large Storage Unit Hacking Suite Shotgun Makeshift Shrapnel Gun Multitool Peak State ------------ > --- POWER ------------ Subdweller Power Source > --- PROPULSION ------- Spiked Treads Spiked Treads > --- UTILITY ---------- Large Storage Unit Improved Terrain Scanner > --- WEAPON ----------- Shotgun Makeshift Shrapnel Gun > --- INVENTORY -------- Spiked Treads Improved Heat Sink High-capacity Matter Pod Seismic Detector Seismic Detector Light Armor Plating Hacking Suite EM Pulse Gun Particle Cannon Subdweller Beam Cannon Shotgun Shotgun Datajack Multitool Maul [Rating: 18] Favorites ----------- Power Subdweller Power Source Engine Subdweller Power Source Propulsion Spiked Treads Treads Spiked Treads Utility Large Storage Unit Device Seismic Detector Storage Large Storage Unit Protection Scrap Shield Weapon Shotgun Energy Gun EM Pulse Gun Energy Cannon Subdweller Beam Cannon Ballistic Gun Shotgun Special Weapon Mining Laser Build | -11 -10 -10 ------- Run | Yrd Mat Sub Slots Evolved . | . . . Power . | . . . Propulsion . | . . . Utility . | . . . Weapon . | . . . Parts Attached 27 | 6 8 13 Power 5 | 1 2 2 Engine 5 | 1 2 2 Core . | . . . Reactor . | . . . Propulsion 5 | 2 . 3 Treads 5 | 2 . 3 Leg . | . . . Wheel . | . . . Hover . | . . . Flight . | . . . Utility 7 | 1 2 4 Device 3 | . 1 2 Storage 2 | 1 1 . Processor . | . . . Hackware . | . . . Protection 2 | . . 2 Artifact . | . . . Weapon 10 | 2 4 4 Energy Gun 1 | . . 1 Energy Cannon 1 | . . 1 Ballistic Gun 7 | 2 3 2 Ballistic Cannon . | . . . Launcher . | . . . Special Weapon 1 | . 1 . Impact Weapon . | . . . Slashing Weapon . | . . . Piercing Weapon . | . . . Special Melee Weapon . | . . . Unidentified Prototypes . | . . . Parts Lost 5 | . . 5 Power 1 | . . 1 Propulsion 2 | . . 2 Utility 2 | . . 2 Weapon . | . . . Highest Loss Streak 3 | . . 3 To Critical Strikes . | . . . Average Backups 10 | 5 11 10 Power . | . . . Propulsion . | . 1 . Utility 4 | 2 5 4 Weapon 4 | 1 4 4 Tool/Special . | . . . Unused Backups 15 | . 4 11 Power . | . . . Propulsion 2 | . 1 1 Utility 5 | . 1 4 Weapon 6 | . 2 4 Tool/Special 2 | . . 2 Average Slot Usage (%) 94 | . 99 92 Engine 13 | . 14 13 Treads 27 | . 27 27 Device 9 | . 13 7 Storage 9 | . 14 7 Protection 4 | . . 6 Energy Cannon 4 | . . 6 Ballistic Gun 23 | . 27 21 Peak Build Rating 18 | 6 11 18 Average Rating 13 | 5 10 14 On Entrance 5 | . 6 11 Naked Turns . | . . . Heaviest Build 34 | 11 30 34 Greatest Support 40 | 40 40 40 Greatest Overweight (x) . | . . . Average Overweight (x) . | . . . Largest Inventory Capacity 15 | 8 15 15 Average Capacity 10 | 7 11 10 Most Carried 15 | 7 15 15 Average Carried 10 | 5 11 10 Final Capacity 15 | 8 15 5 Final Carried 15 | 7 15 5 Class Distribution -------------------- 70% | Mutant 29% | Subdweller-Mutant Dominant Class ---------------- Mutant | -10/Materials Mutant | -10/Subcaves Resources | -11 -10 -10 ----------- Run | Yrd Mat Sub Matter Collected 1298 | 324 405 569 Remotely . | . . . Salvage Created 1086 | 158 405 523 Parts 63 | 14 18 31 Haulers Intercepted 1 | . 1 . Recyclers Shooed 1 | 1 . . Parts Field Recycled . | . . . Retrieved Matter . | . . . Parts Self-Destructed 18 | . . 18 Prevented . | . . . Kills | -11 -10 -10 ------- Run | Yrd Mat Sub Combat Hostiles Destroyed 22 | . 7 15 Guns 18 | . 7 11 Cannons 4 | . . 4 Classes Destroyed 9 | 2 3 4 Tunneler 4 | 4 . . Hauler 1 | . 1 . Recycler 2 | 1 1 . Operator 1 | . 1 . Swarmer 1 | . . 1 Grunt 7 | . 7 . Sentry 1 | . . 1 Artisan 1 | . . 1 Subdweller 13 | . . 13 Best Kill Streak 3 | 3 2 2 Combat Bots Only 2 | . 2 2 Max Kills in Single Turn 1 | 1 1 1 Gunslinging . | . . . Exploded . | . . . Melee . | . . . Uniques/NPCs Destroyed . | . . . Combat | -11 -10 -10 -------- Run | Yrd Mat Sub Hostile Shots Fired 101 | . 23 78 Missed 22 | . 5 17 Hits 79 | . 18 61 Projectile 79 | . 18 61 Critical Strikes 3 | . 2 1 Damage Taken 1697 | . 248 1449 Core 264 | . 38 226 Absorbed by Shields . | . . . Core Remaining (%) 100 | 100 . . Volleys Fired 106 | 16 35 55 Largest 2 | 2 2 2 Hottest 103 | 40 100 103 Shots Fired 197 | 32 68 97 Gun 170 | 32 66 72 Cannon 25 | . . 25 Launcher . | . . . Special 2 | . 2 . Kinetic 167 | 32 66 69 Thermal 27 | . 2 25 Explosive . | . . . Electromagnetic 3 | . . 3 Robot Hit Streak 32 | 8 13 32 Robot Miss Streak 4 | 3 4 3 Penetration Max . | . . . Secondary Targets . | . . . Shots Hit Robots 150 | 22 50 78 Core Hits 67 | 8 25 34 Critical Kills 2 | . . 2 Critical Parts Destroyed . | . . . Critical Strikes 4 | . . 4 Destroy 4 | . . 4 Melee Attacks . | . . . Impact . | . . . Slashing . | . . . Piercing . | . . . Sneak Attacks . | . . . Combat Hostiles . | . . . Follow-up Attacks . | . . . Damage Inflicted 2477 | 207 704 1566 Guns 2029 | 207 697 1125 Cannons 388 | . . 388 Explosions 46 | . . 46 Melee . | . . . Ramming 14 | . 7 7 Kinetic 1991 | 207 697 1087 Thermal 434 | . . 434 Explosive . | . . . Electromagnetic 38 | . . 38 Impact . | . . . Slashing . | . . . Piercing . | . . . Highest Corruption . | . . . Average Corruption . | . . . Corruption Purged . | . . . Corruption Blocked . | . . . Overload Shots . | . . . Overflow Damage 41 | . . 41 Projectiles . | . . . Explosions 41 | . . 41 Melee . | . . . Knockbacks . | . . . Impact . | . . . Kinetic . | . . . Secondary . | . . . Self-Inflicted Damage . | . . . Shots . | . . . Rammed 5 | . 3 2 Targets Rammed 5 | . 3 2 Kicked . | . . . Crushed . | . . . Highest Temperature 22 | . 22 . Average Temperature 8 | . 8 . Received Heat Transfer 327 | . 180 147 Siege Activations . | . . . Martial Activations . | . . . Shielding Activations . | . . . Robots Disrupted . | . . . Combat Hostiles . | . . . Robots Corrupted . | . . . Combat Hostiles . | . . . Parts Fried . | . . . Impact Corruptions . | . . . Robots Melted . | . . . Combat Hostiles . | . . . Parts Melted 1 | . . 1 Heat Transferred 568 | . . 568 Parts Sabotaged . | . . . Parts Stolen . | . . . Parts Stripped . | . . . Power Chain Reactions 1 | . . 1 Alert | -11 -10 -10 ------- Run | Yrd Mat Sub Maximum Alert Level . | . . . Low Security (%) 100 | 100 100 . Level 1 . | . . . Level 2 . | . . . Level 3 . | . . . Level 4 . | . . . Level 5 . | . . . High Security . | . . . Max Security . | . . . Peak Influence 105 | 10 105 . Initial . | . . . Average 15 | . 18 . Influence Increases 358 | 25 293 40 Destroy 0b10 Robot/C 180 | . 140 40 Destroy 0b10 Robot/NC 40 | 25 15 . Destroy Leader 42 | . 42 . Successful Hack 50 | . 50 . Disable Machine 15 | . 15 . Destroy Structure 1 | . 1 . Lose Combat Pursuer 30 | . 30 . Influence Decreases 358 | 25 293 40 Time Decay 358 | 25 293 40 Squads Dispatched 1 | . 1 . Investigation . | . . . Extermination . | . . . Reinforcement 1 | . 1 . Assault . | . . . Garrison . | . . . Intercept . | . . . Searches Triggered . | . . . Construction Impeded . | . . . Haulers Reinforced . | . . . Active Scanning Responses . | . . . Cargo Convoy Interrupts . | . . . Stealth | -11 -10 -10 --------- Run | Yrd Mat Sub Distress Signals 2 | . 2 . Communications Jammed . | . . . Distress Signals . | . . . Times Spotted 35 | . 18 17 Peak Tracking Total 4 | . 4 3 Tactical Retreats 2 | . 2 . Traps | -11 -10 -10 ------- Run | Yrd Mat Sub Traps Triggered 6 | . 2 4 Indirectly . | . . . Trap Hack Attempts . | . . . Triggered . | . . . Disarmed . | . . . Reprogrammed . | . . . Reused . | . . . Traps Extracted . | . . . Installed . | . . . Triggered . | . . . Machines | -11 -10 -10 ---------- Run | Yrd Mat Sub Machines Disabled 1 | . 1 . Max in Single Turn 1 | . 1 . Machines Repaired . | . . . Machines Dismantled . | . . . Machines Sabotaged . | . . . Overloaded Fab Kills . | . . . Hacking | -11 -10 -10 --------- Run | Yrd Mat Sub Machines Accessed 7 | . 5 2 Terminals 5 | . 5 . Fabricators . | . . . Repair Stations . | . . . Recycling Units . | . . . Scanalyzers . | . . . Garrison Access . | . . . Total Hacks 22 | . 17 5 Successful 17 | . 12 5 Failed 5 | . 5 . Catastrophic 2 | . 2 . Database Lockouts . | . . . Manual 15 | . 15 . Terminals 17 | . 17 . Fabricators . | . . . Repair Stations . | . . . Recycling Units . | . . . Scanalyzers . | . . . Garrison Access . | . . . Terminal Hacks 9 | . 4 5 Record 4 | . . 4 Part Schematic 1 | . 1 . Open Door 1 | . . 1 Terminal Index 1 | . 1 . Locate Traps 1 | . 1 . Zone Layout 1 | . 1 . Fabricator Hacks . | . . . Repair Station Hacks . | . . . Recycling Unit Hacks . | . . . Scanalyzer . | . . . Garrison Access Hacks . | . . . Unauthorized Hacks 8 | . 8 . Terminals 8 | . 8 . Botnet 2 | . 2 . Operators 1 | . 1 . Skim 5 | . 5 . Fabricators . | . . . Repair Stations . | . . . Recycling Units . | . . . Scanalyzers . | . . . Garrison Access . | . . . Data Cores Recovered . | . . . Used . | . . . Hacking Detections 5 | . 5 . Full Trace Events . | . . . Feedback Events . | . . . Feedback Blocked . | . . . Robot Schematics Acquired . | . . . Robots Built . | . . . Authchips . | . . . Time . | . . . Total Robot Build Rating . | . . . Part Schematics Acquired 1 | . 1 . Parts Built . | . . . Authchips . | . . . Time . | . . . Total Part Build Rating . | . . . Parts Repaired . | . . . Time . | . . . Parts Recycled . | . . . Recycled Matter . | . . . Retrieved Matter . | . . . Retrieved Components . | . . . Parts Scanalyzed . | . . . Part Schematics Acquired . | . . . Parts Damaged . | . . . Bothacking | -11 -10 -10 ------------ Run | Yrd Mat Sub Used RIF Installer . | . . . Robots Hacked . | . . . Non-combat . | . . . Combat . | . . . Robot Hacks Applied . | . . . Relay Couplers Released . | . . . Fabnet Peak Effective % . | . . . Robots Rewired . | . . . Allies Hacked . | . . . Hacks Repelled . | . . . Allies | -11 -10 -10 -------- Run | Yrd Mat Sub Total Allies . | . . . Largest Group . | . . . Highest-Rated Group . | . . . Highest-Rated Ally . | . . . Total Orders . | . . . Ally Attacks . | . . . Total Damage . | . . . Kills . | . . . Allies Corrupted . | . . . Allies Melted . | . . . Intel | -11 -10 -10 ------- Run | Yrd Mat Sub Active Infowar (turns) 3167 | . 1348 1819 Terrain 685 | . . 685 Seismic 2482 | . 1348 1134 Robot Analysis Total . | . . . Derelict Logs Recovered 1 | . . 1 Drone Launches . | . . . Drone Recoveries . | . . . Exploration | -11 -10 -10 ------------- Run | Yrd Mat Sub Turns Passed 5135 | 274 1362 3499 Spaces Moved 2347 | 137 592 1618 Core 7 | 7 . . Treads 2340 | 130 592 1618 Legs . | . . . Wheels . | . . . Hover . | . . . Flight . | . . . Fastest Speed 50 | 50 160 160 Average Speed 159 | 154 160 160 Slowest Speed 160 | 160 160 160 Overloaded Moves . | . . . Propulsion Burnouts . | . . . Robots Hopped . | . . . Potential Cave-ins . | . . . Cave-ins Triggered . | . . . Exploration Rate (%) 49 | 8 66 74 Regions Visited 2 Branch Regions 1 Pre-discovered Areas 2 | . 1 1 Known Exits Taken . | . . . Unknown Exits Taken 2 | 1 1 . Scrap Searched 4 | . . 4 Spaces Dug 1 | . 1 . Terrain Destroyed 2 | . 1 1 Melee . | . . . Projectile 1 | . 1 . AOE 1 | . . 1 Terrain Rammed . | . . . Walls Destroyed . | . . . Machines Disabled . | . . . Actions | -11 -10 -10 --------- Run | Yrd Mat Sub Total 3536 | 168 936 2432 Wait 983 | 2 264 717 Move 2345 | 136 591 1618 Hop . | . . . Pick Up 32 | 8 16 8 Fast Attach 11 | 5 4 2 Attach 3 | 1 1 1 Detach . | . . . Swap 23 | . 10 13 Drop 25 | . 12 13 Fire 106 | 16 35 55 Melee . | . . . Ram . | . . . Kick . | . . . Crush 5 | . 3 2 Escape Stasis . | . . . Rewire . | . . . Trap . | . . . Miscellaneous 3 | . . 3 Route ------- -11/Scrapyard -10/Materials (discovered 5 exits: *Mat x3 / *Min / *Sub) -10/Subcaves (discovered 2 exits: [*Mat x2]) History --------- Turn | Location | Event 3 | -11/Scrapyard | Discovered new exit (range 15) 275 | -11/Scrapyard | Entered Materials 319 | -10/Materials | Build established: Mutant 685 | -10/Materials | Discovered new exit (range 13) 760 | -10/Materials | Discovered new exit (range 6) 1035 | -10/Materials | Discovered new exit (range 13) 1235 | -10/Materials | Learned Storage trap positions 1300 | -10/Materials | Loaded intel: 35 machine locations 1400 | -10/Materials | Identified exit to Materials 1436 | -10/Materials | Identified exit to Mines 1460 | -10/Materials | Learned 4 Subcaves zone layouts 1476 | -10/Materials | Learned 2 Storage zone layouts 1500 | -10/Materials | Learned 2 Storage zone layouts 1532 | -10/Materials | Learned location of 2 exits from Mines 1629 | -10/Materials | Learned location of 2 exits from Mines 1637 | -10/Materials | Entered Subcaves 1699 | -10/Subcaves | Ambushed by angry Subdweller bent on revenge 1945 | -10/Subcaves | A swath of the cavern ceiling suddenly collapsed 2421 | -10/Subcaves | Disturbed a concealed Subdweller 2425 | -10/Subcaves | Core integrity fell below 50% 3292 | -10/Subcaves | Learned Materials trap positions 3392 | -10/Subcaves | Learned location of Zion (-7) 3392 | -10/Subcaves | Met a Zionite searching for "candidates" 3524 | -10/Subcaves | Shifting Twisted Machinery released Sub. Laser 3526 | -10/Subcaves | Discovered new exit (range 15) 3536 | -10/Subcaves | Shifting Twisted Machinery released Riot Gun 3683 | -10/Subcaves | Shifting Twisted Machinery released Sub. Optics 3910 | -10/Subcaves | Build established: Subdweller-Mutant 4002 | -10/Subcaves | Visited Clippyterm 4007 | -10/Subcaves | Learned Research security intel 5053 | -10/Subcaves | Discovered new exit (range 13) 5097 | -10/Subcaves | A Subdweller sparked back to life 5097 | -10/Subcaves | A Subdweller sparked back to life 5123 | -10/Subcaves | Core integrity fell below 20% 5136 | -10/Subcaves | Destroyed by NH-TXF(R) with Subdweller Machine Gun Last Messages --------------- 04043_ Acquired 4 matter. 04401_ FX-KU1(R) suffers critical hit (Destroy). 04401_ FX-KU1(R) destroyed. 04404_ Disposable Heat Sink melted. 04404_ WJ-B7N(R) destroyed. 04407_ Acquired 12 matter. 04553_ Triggered Piercing Trap. 04553_ Spikes shoot up from the floor. 04574_ Triggered Shrapnel Trap. 04574_ An expanding cloud of shrapnel blasts out in all directions. 04672_ AL-PVE(z) uncovers a bit of Twisted Machinery. 04889_ FJ-BAU(u) tweaks Twisted Machinery. 05053_ EXIT=FOUND 05097_ NH-TXF(R) creaks and sparks as it begins to move. 05097_ M2-CFS(R) creaks and sparks as it begins to move. 05123_ Scrap Shield destroyed. 05126_ Spk. Treads destroyed. 05126_ Destroyed Scrap Shield. 05126_ JG-VTM(R) destroyed. 05130_ Spk. Treads destroyed. Map ----- +----------------------------------------------------+ | """#???????## #####??## #???????????? | | #"##???????# % #???####### #???????????? | | #"#????????# ### #??# ##?# #???????????? | | ###????????## ##?### ##??# ### #???????????? | | #??????????###???## #????# #???????????? | | ##????????????????# ###### #???????????? | | ##?????????????????# ## # #???????????? | | ##?????????????????# ## #???????????? | | #??????????????????# ### #???????????? | | ##????????????????### # ## ##??###???????????? | | #???????????????## #####?????????????????? | | #???????????????# ##?###?????????????????? | | #???????????????# ###### ####??????????????? | | ##???????????????# #???# #??????????????? | | #????????????????# #???# ##?????????????? | | #????????????????# % ##### ##????????????? | | ####?????????????### ## ##???????????? | | #???????????????## #???????????? | | #????????????????## #???????????? | | #?????????????????# % % < #???????????? | | ##?????????????????## ###????????????? | | ##??????????????????## #########??????????????? | | #?????????????????### ####???????????????????? | | #?????????????????# #???????????????????? | | ##????????????????## RR #???????????????????? | | ###?????????????????# %@ ##??????????????????? | | ???????????????????## ## ##?????????????????? | | ??????????????????## # #?????????????????? | | ??????????????????# ## % ##?????????????????? | | ??????????????????# %% ### #??????????????????? | | ??????????????????# #### #??????????????????? | | ??????????????????# ### #??????????????????? | | ??????????????????### ## ##?????????????????? | | ????????????????????# #?????????????????? | | ???????????????????? ##?????????????????? | | ???????????????????? # ####??????????????????? | | ??????????????????? "" ##?????????????????????? | | #?????????????????? #??????????????????????? | | #????????????????? """#####??????????????????????? | | #????????????????? & #??????????????????????????? | | ?????????????????###?##??????????????????????????? | | ?????????????????????????????????????????????????? | | ?????????????????????????????????????????????????? | | ?????????????????????????????????????????????????? | | ?????????????????????????????????????????????????? | | ?????????????????????????????????????????????????? | | ?????????????????????????????????????????????????? | | ?????????????????????????????????????????????????? | | ?????????????????????????????????????????????????? | | ?????????????????????????????????????????????????? | +----------------------------------------------------+ Best States ------------- Heat Dissipation 25 Energy Generation 10 Energy Capacity 200 Matter Stores 300 Matter Capacity 300 Sight Range 16 Terrain Scan Range 16 Terrain Scan Density 10 Armor Coverage 800 Evasion (%) 40 Recoil Reduction 2 Item Schematics ----------------- Hcp. Storage Unit | -10/Materials | Hacked Robot Schematics ------------------ None Fabricated ------------ Nothing Repaired ---------- Nothing Alien Tech Used ----------------- None Achievements -------------- None Challenges ------------ None Game ------ Seed CoreGrenadeRay Manual? 0 Play Time 00:24:06 Cumulative 559.9 hours Start 2025.07.19 @ 23:41:47 End 2025.07.20 @ 00:06:52 Sessions 1 Manual Loads 0 Difficulty Rogue Special Mode None Game No. 322 Rogue 297 Adventurer 7 Explorer 18 Win Type - Total 44 Types 27/0/8/2/0/1/1/3/0/2 Lore% 94 Gallery% 90 Achievement% 81 Wizard Run 0 Options --------- Layout 0 ASCII 0 Keyboard 0 Movement Numpad Keybinds 0 Fullscreen 1 Font 12/Smallcaps Map View 83x54 Zoom Use 0% Tactical HUD 1 Map Filters NONE Filters NONE Steam 1 RUN: 21631550-4510-487e-b4c2-c4f610b88136